bitfinex/quotes_ETHUSD_20250529
["timestamp","ask_amount","ask_price","bid_price","bid_amount"]
[1748540707808,4.272,2649.3,2649.1,24.00200895]
[1748540707929,4.272,2649.3,2649.2,17.692361]
[1748540708130,4.272,2649.3,2649.2,13.351392]
[1748540708357,4.272,2649.3,2649.1,35.879837]
[1748540708675,1.4198,2649.8,2649.2,2.44784086]
[1748540708875,4.268,2650.0,2649.6,24.39236]
[1748540709172,5.03582593,2650.6,2650.0,3.77346049]
[1748540709173,1.4198,2650.4,2650.0,3.77346049]
[1748540709377,1.4198,2650.4,2649.9,3.77361906]
[1748540709378,4.268,2650.3,2649.9,3.77361906]
[1748540709592,1.4198,2650.4,2650.0,33.77931459]
[1748540709733,1.3722,2650.7,2650.3,30.120457]
[1748540710080,1.3722,2650.7,2650.2,3.77322212]
[1748540710367,4.266,2650.6,2650.3,14.696683]
[1748540710684,3.77279803,2650.6,2650.1,25.782573]
[1748540710833,4.264,2650.6,2650.2,30.242089]
[1748540711028,8.03677044,2650.6,2650.2,30.242089]
[1748540711224,4.264,2650.6,2650.2,30.242089]
[1748540711425,4.264,2650.6,2650.1,15.901771]
[1748540711784,3.77188289,2651.2,2650.4,28.263642]
[1748540711929,1.3173,2651.3,2650.4,28.263642]
[1748540711930,3.77227603,2651.0,2650.5,16.832722]
[1748540712287,3.77210807,2651.1,2650.4,12.17755848]
[1748540712288,8.03138152,2650.9,2650.4,12.17755848]
[1748540712444,4.259,2650.9,2650.4,29.97101153]
[1748540712631,8.03134417,2650.9,2650.4,25.717247]
[1748540713062,1.3173,2651.3,2650.4,26.21040149]
[1748540713265,1.3173,2651.3,2650.8,31.357402]
[1748540713601,1.3173,2651.3,2650.8,11.771973]
[1748540713602,3.7721375,2651.1,2650.8,11.771973]
[1748540713762,3.7721375,2651.1,2650.8,27.769655]
[1748540713961,3.77222715,2651.0,2650.6,18.82322]
[1748540714261,1.3173,2651.3,2650.5,0.55]
[1748540714262,1.3173,2651.3,2650.8,10.0]
[1748540714457,4.255,2651.2,2651.0,25.262717]
[1748540714696,5.5723,2651.3,2650.9,18.362123]
[1748540714858,0.35963712,2651.4,2650.9,4.32220834]
[1748540715055,4.254,2651.3,2651.0,20.84170057]
[1748540715275,4.254,2651.3,2650.3,3.30384086]
[1748540715505,0.35963712,2651.4,2650.9,3.77220695]
[1748540715678,0.35963712,2651.4,2651.2,27.753428]
[1748540715679,4.251,2651.3,2651.2,27.753428]
[1748540715877,0.35963712,2651.4,2651.3,13.80136262]
[1748540716463,0.35963712,2651.4,2651.3,14.35136262]
[1748540716966,0.35963712,2651.4,2651.3,15.94165476]
[1748540717582,4.247,2652.3,2651.5,3.77143208]
[1748540717780,1.3671,2652.5,2652.1,21.706415]
[1748540717965,4.244,2652.4,2652.0,32.06711957]
[1748540718308,4.244,2652.4,2651.8,27.719691]
[1748540718309,3.77032162,2652.3,2651.8,27.719691]
[1748540718459,3.77032162,2652.3,2652.0,29.336491]
[1748540718659,3.77032162,2652.3,2652.0,19.336491]
[1748540718911,3.77032162,2652.3,2651.7,0.55]
[1748540718912,9.32549293,2652.3,2651.7,0.55]
[1748540719108,3.77060112,2652.1,2651.8,13.285821]
[1748540719261,3.77052012,2652.2,2651.8,13.285821]
[1748540719461,3.77065558,2652.1,2651.8,13.285821]
[1748540719677,1.4291,2651.9,2651.7,0.38470965]
[1748540719976,1.30958823,2652.2,2651.5,3.77137598]
[1748540719977,4.241,2652.0,2651.5,3.77137598]
[1748540720180,1.4291,2652.2,2651.5,0.36841926]
[1748540720387,4.242,2652.1,2651.9,4.9729]
[1748540720588,4.242,2652.1,2651.7,12.0973]
[1748540720788,4.242,2652.1,2651.8,17.92407017]
[1748540721014,1.3838,2652.5,2651.9,0.55]
[1748540721313,1.89916432,2652.5,2652.0,3.77067203]
[1748540721484,1.89916432,2652.5,2652.2,25.845153]
[1748540721485,1.3838,2652.5,2652.2,25.845153]
[1748540721683,1.3969,2653.0,2652.4,21.216944]
[1748540721864,1.3969,2653.0,2652.6,3.76975143]
[1748540722070,3.76953744,2652.9,2652.6,10.6416]
[1748540722314,0.94014374,2652.9,2652.4,12.503122]
[1748540722594,5.16692827,2652.5,2652.4,4.60679169]
[1748540722803,3.77074726,2652.0,2651.7,20.006413]
[1748540723011,3.77074726,2652.0,2651.5,1.76953088]
[1748540723012,3.77089598,2651.9,2651.6,13.62458]
[1748540723305,3.77089598,2651.9,2651.6,11.7186]
[1748540723306,3.77090133,2651.9,2651.6,11.7186]
[1748540723509,3.77043076,2652.3,2651.7,22.080782]
[1748540723711,3.77043076,2652.3,2651.7,12.405271]
[1748540723712,0.51673308,2652.3,2651.7,12.405271]
[1748540724007,0.51673308,2652.3,2651.7,15.455471]
[1748540724008,4.236,2652.2,2651.7,15.455471]
[1748540724177,4.235,2652.1,2651.7,15.455471]
[1748540725492,4.235,2652.1,2651.7,13.166118]
[1748540725812,4.28705847,2652.3,2651.7,12.411812]
[1748540726113,4.28705847,2652.3,2651.6,4.32120929]
[1748540726114,4.228,2652.1,2651.8,12.452281]
[1748540726280,4.228,2652.1,2651.7,12.761812]
[1748540726683,1.3969,2652.5,2652.0,0.55]
[1748540727029,1.3969,2652.5,2651.9,23.891962]
[1748540727030,1.3164,2652.8,2652.4,3.77003595]
[1748540727176,5.5404,2652.8,2652.5,22.806318]
[1748540727368,5.5404,2652.8,2652.6,11.5128]
[1748540727598,4.224,2652.8,2652.6,21.512677]
[1748540727796,3.76939491,2653.0,2652.5,12.044267]
[1748540727999,4.22,2652.8,2652.4,24.33078123]
[1748540728195,4.22,2652.8,2652.5,19.73059]
[1748540728410,4.22,2652.8,2652.2,0.55]
[1748540728411,4.218,2652.9,2652.6,19.42144]
[1748540728614,4.218,2652.9,2652.5,23.337459]
[1748540728765,4.218,2652.9,2652.5,26.53335811]
[1748540729109,4.218,2652.9,2652.6,16.99144]
[1748540729294,7.98747845,2652.9,2652.5,16.386145]
[1748540729495,1.3704,2653.5,2652.6,20.00744]
[1748540729813,1.3704,2653.5,2652.9,33.642553]
[1748540729978,3.76909664,2653.2,2652.8,0.55]
[1748540730304,3.76896295,2653.3,2652.8,14.668761]
[1748540730508,7.98481353,2653.4,2652.9,17.610111]
[1748540730721,3.76898051,2653.3,2652.8,0.55]
[1748540730871,3.76916545,2653.2,2652.9,13.699411]
[1748540731069,3.76896434,2653.3,2652.9,13.699411]
[1748540731421,4.215,2653.2,2652.9,13.699411]
[1748540731587,4.215,2653.2,2653.0,15.298621]
[1748540732320,1.3704,2653.5,2653.0,19.06782397]
[1748540732476,1.3704,2653.5,2653.2,23.92456]
[1748540732674,3.76895363,2653.3,2653.0,0.55]
[1748540733018,4.211,2653.4,2652.9,14.79398559]
[1748540733019,5.15031775,2653.0,2652.9,0.37586759]
[1748540733225,3.7695796,2652.9,2652.3,3.77017416]
[1748540733382,9.35939867,2653.0,2652.5,25.827847]
[1748540733580,9.35939867,2653.0,2652.6,12.358182]
[1748540734305,3.76947314,2652.9,2652.5,22.844672]
[1748540734471,9.35938562,2653.0,2652.5,22.844672]
[1748540734676,3.76988614,2652.6,2651.8,1.3882]
[1748540734880,3.76988614,2652.6,2651.7,0.514]
[1748540734881,4.206,2652.5,2651.7,9.687597]
[1748540735106,4.208,2652.5,2651.6,20.468582]
[1748540735429,4.208,2652.5,2652.3,19.331945]
[1748540735613,1.3909,2652.8,2652.5,21.028702]
[1748540735824,1.3909,2652.8,2652.1,1.3882]
[1748540735825,7.9756361,2652.8,2652.3,10.9596]
[1748540735981,3.7698322,2652.7,2652.3,12.551037]
[1748540736176,7.97565405,2652.8,2652.3,16.3213419]
[1748540736382,4.206,2652.8,2652.4,12.664987]
[1748540736619,4.206,2652.8,2652.5,17.712042]
[1748540736822,4.206,2652.8,2652.4,3.77015562]
[1748540736986,4.206,2652.8,2652.5,27.712042]
[1748540737324,4.206,2652.8,2652.4,10.0]
[1748540737325,3.76982037,2652.7,2652.4,10.0]
[1748540737528,3.76999634,2652.6,2652.4,23.833498]
[1748540737732,4.2,2652.8,2652.2,16.514474]
[1748540738026,7.96968673,2652.8,2652.4,13.223489]
[1748540738400,1.4035,2653.3,2652.4,13.223489]
[1748540738734,3.76952243,2652.9,2652.6,12.139805]
[1748540739035,3.76952243,2652.9,2652.5,15.700655]
[1748540739195,7.96752243,2652.9,2652.5,15.700655]
[1748540739394,4.198,2652.9,2652.6,11.743597]
[1748540739731,4.198,2652.9,2652.3,0.55]
[1748540739928,4.198,2652.9,2652.5,3.77002702]
[1748540740131,4.198,2652.9,2652.8,29.735535]
[1748540740329,4.198,2652.9,2652.6,18.749906]
[1748540740531,4.198,2652.9,2652.5,20.201646]
[1748540740733,4.198,2652.9,2652.6,16.635986]
[1748540741040,4.198,2652.9,2652.6,19.248281]
[1748540741243,4.189,2652.9,2652.7,18.056575]
[1748540741405,4.189,2652.9,2652.7,16.675375]
[1748540741588,4.189,2652.9,2652.7,3.76967718]
[1748540741943,4.189,2652.9,2652.6,13.795956]
[1748540742293,4.189,2652.9,2652.6,3.76980465]
[1748540742595,3.76960193,2652.8,2652.1,5.15868665]
[1748540742805,5.20178749,2653.3,2652.3,11.016575]
[1748540743001,4.185,2653.2,2652.4,11.575327]
[1748540743217,3.76966544,2652.8,2652.4,11.575327]
[1748540743416,4.184,2652.8,2652.5,3.76992002]
[1748540743633,3.76941913,2653.0,2652.6,14.424013]
[1748540743792,4.183,2652.9,2652.5,18.151268]
[1748540743993,4.183,2652.9,2652.6,17.787764]
[1748540744194,4.184,2653.0,2652.6,18.09320429]
[1748540744396,7.95338751,2653.0,2652.6,15.776108]
[1748540744734,1.4328,2653.3,2652.6,20.958044]
[1748540744891,3.76995615,2652.6,2652.3,10.0]
[1748540745092,3.77004188,2652.5,2652.4,10.0]
[1748540745305,3.76999263,2652.6,2652.1,18.602103]
[1748540745489,3.76999263,2652.6,2652.2,10.0]
[1748540745706,9.38456652,2652.7,2652.3,10.0]
[1748540745903,1.4328,2653.0,2652.5,10.0]
[1748540746141,7.94947098,2652.9,2652.6,10.0]
[1748540746303,3.76974403,2652.7,2652.6,14.803874]
[1748540746507,3.76967448,2652.8,2652.5,16.745684]
[1748540746937,3.76979026,2652.7,2652.5,16.745684]
[1748540747230,3.76988614,2652.6,2652.4,11.060947]
[1748540747597,3.76981333,2652.7,2652.4,11.060947]
[1748540747975,3.76971919,2652.8,2652.4,11.060947]
[1748540748238,7.94953904,2652.9,2652.4,11.060947]
[1748540748413,3.76962536,2652.8,2652.5,12.234176]
[1748540748614,3.77005621,2652.5,2652.3,10.0]
[1748540748798,3.77005621,2652.5,2652.3,21.461679]
[1748540749120,7.94094728,2652.6,2652.2,18.537059]
[1748540749327,4.171,2652.6,2652.2,15.260336]
[1748540749500,7.94089335,2652.6,2652.2,15.260336]
[1748540749696,4.171,2652.6,2652.3,17.620616]
[1748540749903,4.171,2652.6,2652.3,27.614962]
[1748540750117,4.171,2652.6,2652.3,17.614962]
[1748540750641,4.171,2652.6,2652.2,0.55]
[1748540750642,3.76959773,2652.9,2652.5,25.646344]
[1748540750845,3.76963707,2652.8,2652.5,15.646344]
[1748540751017,7.93654036,2652.9,2652.5,15.646344]
[1748540751401,1.3562,2653.3,2652.6,0.55]
[1748540751628,4.164,2653.2,2652.7,18.453812]
[1748540751829,3.76954838,2652.9,2652.6,20.5302]
[1748540752134,7.93349902,2652.9,2652.6,20.5302]
[1748540753045,4.164,2652.9,2652.6,20.5302]
[1748540753342,7.93349036,2652.9,2652.6,20.5302]
[1748540753545,7.93348701,2652.9,2652.6,20.5302]
[1748540753751,4.164,2652.9,2652.6,20.5302]
[1748540754061,7.93351021,2652.9,2652.6,20.5302]
[1748540754339,7.93351021,2652.9,2652.6,20.082025]
[1748540754340,3.76960426,2652.8,2652.6,20.082025]
[1748540754501,3.76960426,2652.8,2652.3,2.44340478]
[1748540754502,3.76974403,2652.7,2652.4,11.359249]
[1748540754707,3.76961409,2652.8,2652.4,11.359249]
[1748540755103,3.76961409,2652.8,2652.3,12.764483]
[1748540755104,3.76987588,2652.7,2652.3,12.764483]
[1748540755299,3.76991423,2652.6,2652.3,12.764483]
[1748540755542,3.76980692,2652.7,2652.3,12.764483]
[1748540756165,1.3342,2652.8,2652.3,12.764483]
[1748540756362,5.10380245,2652.8,2652.3,12.764483]
[1748540756506,7.93350896,2652.9,2652.3,16.53477346]
[1748540756707,4.151,2652.8,2652.6,22.363808]
[1748540756920,4.151,2652.8,2652.6,12.363808]
[1748540758048,4.151,2652.8,2652.2,5.1338804]
[1748540758049,4.151,2652.8,2652.3,16.024837]
[1748540758410,1.4019,2653.1,2652.3,16.024837]
[1748540758604,1.4019,2653.1,2652.6,23.283882]
[1748540758605,5.17111009,2653.1,2652.6,23.283882]
[1748540758811,4.147,2653.0,2652.6,23.283882]
[1748540759038,7.91549983,2652.9,2652.6,19.334203]
[1748540759311,4.146,2652.9,2652.6,19.334203]
[1748540759624,1.66736719,2653.7,2653.1,0.55]
[1748540759625,0.36108717,2653.4,2653.1,0.55]
[1748540759832,0.45136719,2654.0,2653.2,32.393922]
[1748540760033,5.63966146,2654.0,2653.4,15.687519]
[1748540760321,4.232,2653.9,2653.4,15.687519]
[1748540760526,4.232,2653.9,2653.4,3.714132]
[1748540760729,3.76853454,2653.6,2653.1,0.55]
[1748540761045,3.76875938,2653.4,2653.2,14.211667]
[1748540761242,3.76864311,2653.5,2653.2,4.211667]
[1748540761470,5.11336127,2654.4,2653.3,28.811136]
[1748540761784,3.76839815,2653.7,2653.3,2.682817]
[1748540761965,3.76839815,2653.7,2653.1,4.31904813]
[1748540761966,1.3369,2654.3,2653.6,3.76838238]
[1748540762170,3.76783746,2654.1,2653.6,26.262637]
[1748540762313,3.76780809,2654.1,2653.6,26.262637]
[1748540762515,8.01267673,2654.2,2653.6,29.24017977]
[1748540762727,1.3369,2654.3,2653.6,30.55903]
[1748540762970,1.3369,2654.3,2653.7,4.31821006]
[1748540763184,3.76738608,2654.4,2653.9,33.787318]
[1748540763347,3.76722945,2654.5,2653.9,13.85164769]
[1748540763531,3.76749817,2654.3,2653.9,0.55]
[1748540763863,8.0072149,2654.5,2653.9,5.116236]
[1748540763864,3.76784707,2654.1,2653.9,5.116236]
[1748540764039,3.76784707,2654.1,2653.8,13.134895]
[1748540764236,1.3987,2654.2,2653.8,2.177299]
[1748540764440,5.16632436,2654.2,2653.8,2.177299]
[1748540765061,4.236,2654.1,2653.8,2.177299]
[1748540765369,3.76806606,2653.9,2653.2,1.3581]
[1748540765571,1.3987,2654.2,2653.4,10.0]
[1748540765572,4.236,2653.8,2653.4,10.0]
[1748540765779,1.3987,2654.2,2653.6,10.0]
[1748540766084,4.235,2654.1,2653.8,10.0]
[1748540766285,3.76796815,2654.0,2653.6,0.55]
[1748540766440,3.76796815,2654.0,2653.7,22.776993]
[1748540766631,8.00282572,2654.1,2653.7,12.776993]
[1748540766861,3.76792602,2654.0,2653.7,12.776993]
[1748540767069,1.3987,2654.2,2653.7,12.776993]
[1748540767273,5.16632761,2654.2,2653.7,12.408005]
[1748540767784,1.3987,2654.2,2653.7,12.408386]
[1748540767947,1.3987,2654.2,2653.7,14.7746737]
[1748540768164,4.248,2654.1,2653.5,13.476954]
[1748540768363,4.248,2654.1,2653.4,0.38103451]
[1748540768364,4.248,2654.1,2653.4,13.831178]
[1748540768696,4.248,2654.1,2653.4,14.022688]
[1748540768900,1.91530546,2654.2,2653.6,22.595363]
[1748540769054,8.01396426,2654.0,2653.6,10.769723]
[1748540769392,3.76783301,2654.1,2653.6,10.769723]
[1748540769596,1.3987,2654.2,2653.6,10.769723]
[1748540769597,4.244,2654.0,2653.6,10.769723]
[1748540769749,8.01190849,2654.0,2653.6,10.769723]
[1748540770448,4.244,2654.0,2653.6,10.769723]
[1748540770891,8.00577603,2654.1,2653.6,15.694001]
[1748540771194,3.76777603,2654.1,2653.7,15.241739]
[1748540771491,7.80477603,2654.1,2653.7,15.241739]
[1748540771647,3.76803659,2654.0,2653.6,12.332643]
[1748540771851,3.76814162,2653.9,2653.6,11.293029]
[1748540773192,5.53410999,2654.1,2653.6,15.06137369]
[1748540773407,4.237,2654.1,2653.8,23.691866]
[1748540773556,3.7679082,2654.0,2653.6,11.550417]
[1748540773761,3.76804543,2653.9,2653.6,11.550417]
[1748540774062,1.3987,2654.2,2653.6,15.00879281]
[1748540774263,4.229,2654.3,2653.8,28.02703127]
[1748540774466,1.3089,2654.8,2654.4,3.76725706]
[1748540774686,0.66666667,2654.9,2654.6,16.868183]
[1748540774865,0.66666667,2654.9,2654.7,31.57409672]
[1748540775075,0.35910265,2655.2,2654.8,22.702088]
[1748540775265,0.44895007,2655.4,2655.2,0.55]
[1748540775463,0.44895007,2655.4,2655.3,44.498592]
[1748540775696,0.44895007,2655.4,2655.3,31.07035135]
[1748540775903,4.27,2656.0,2655.3,34.83640415]
[1748540775904,0.44895007,2655.5,2655.3,34.83640415]
[1748540776053,0.44895007,2655.5,2655.4,32.64330897]
[1748540776257,5.07388687,2656.1,2655.5,22.75737896]
[1748540776565,0.60049026,2656.3,2655.9,26.633071]
[1748540776765,0.60049026,2656.3,2656.2,53.76477674]
[1748540776963,0.60049026,2656.3,2656.2,16.90191]
[1748540777170,3.76406892,2656.7,2656.3,10.65265]
[1748540777171,3.76435999,2656.5,2656.3,10.65265]
[1748540777383,3.76449329,2656.4,2656.3,9.44695]
[1748540777564,3.76503664,2656.1,2655.9,16.035404]
[1748540777898,3.765202,2655.9,2655.8,2.531964]
[1748540778055,8.03694223,2656.1,2655.3,11.80773035]
[1748540778056,3.76539169,2655.8,2655.4,12.490945]
[1748540778258,3.7655982,2655.7,2655.4,11.942566]
[1748540778519,1.4162,2656.3,2655.4,11.942566]
[1748540778520,3.76265191,2657.7,2655.6,1.4373]
[1748540778673,1.60387698,2658.0,2656.6,2.44340478]
[1748540778674,5.6852,2658.0,2656.6,2.44340478]
[1748540778862,1.4162,2657.8,2656.7,6.394892]
[1748540779193,0.31467684,2657.9,2656.7,14.3328]
[1748540779194,3.76387786,2656.9,2656.7,14.3328]
[1748540779377,3.76387786,2656.9,2656.3,10.0]
[1748540779378,4.269,2657.0,2656.4,40.126639]
[1748540779581,4.269,2657.0,2656.4,0.55]
[1748540779778,4.269,2657.0,2656.5,27.850182]
[1748540779960,4.269,2657.0,2656.5,17.850182]
[1748540780156,4.265,2656.9,2656.6,20.535612]
[1748540780382,4.265,2656.9,2656.5,27.734224]
[1748540780897,4.266,2656.9,2656.5,26.115313]
[1748540781085,4.266,2656.9,2656.5,19.307075]
[1748540781798,1.4162,2657.2,2656.7,35.19979117]
[1748540782006,0.55,2658.4,2656.6,3.76418618]
[1748540782007,1.4425,2657.6,2657.0,37.59015037]
[1748540782298,1.4425,2657.6,2657.0,20.953811]
[1748540782299,4.261,2657.5,2657.0,20.953811]
[1748540782605,1.4425,2657.6,2656.9,18.36561]
[1748540782801,1.229,2657.7,2656.7,4.278382]
[1748540782976,4.259,2657.5,2656.9,10.0]
[1748540783173,4.259,2657.5,2657.0,10.953809]
[1748540783376,4.259,2657.5,2656.8,25.167433]
[1748540783580,1.229,2657.6,2657.1,3.76349428]
[1748540783764,4.263,2657.5,2657.1,3.76341387]
[1748540783967,4.263,2657.5,2657.1,19.26799986]
[1748540784274,4.262,2657.6,2657.3,3.76319548]
[1748540784479,4.262,2657.6,2657.3,15.25404983]
[1748540784808,1.229,2657.8,2657.3,15.25397698]
[1748540785012,4.26,2657.7,2657.2,12.6447]
[1748540785166,4.26,2657.7,2657.1,13.059307]
[1748540785668,1.4425,2657.9,2657.1,13.07963]
[1748540785903,5.489,2657.8,2657.1,11.886017]
[1748540786214,4.258,2657.8,2657.2,13.686577]
[1748540786570,1.4207,2658.3,2657.5,30.436683]
[1748540786920,5.485,2658.2,2657.7,10.3416]
[1748540787117,1.4421,2659.0,2657.7,3.76265191]
[1748540787317,5.483,2658.9,2657.9,26.77881]
[1748540787620,1.4421,2658.8,2657.8,15.593606]
[1748540787782,5.481,2658.7,2658.0,30.29515839]
[1748540787980,5.481,2658.7,2658.0,11.448175]
[1748540788181,5.481,2658.7,2658.0,10.610088]
[1748540788410,5.6921,2658.8,2658.2,32.579666]
[1748540788614,3.76133324,2658.7,2657.7,16.19521]
[1748540788782,1.4421,2658.8,2657.8,3.76251034]
[1748540789125,1.4421,2658.8,2658.2,24.375284]
[1748540789126,5.477,2658.7,2658.2,24.375284]
[1748540789278,4.249,2658.9,2658.4,18.464691]
[1748540789481,4.249,2658.9,2658.4,6.758492]
[1748540789781,4.249,2658.9,2658.6,10.0]
[1748540789981,4.249,2658.9,2658.8,10.0]
[1748540790178,1.3874,2659.1,2658.4,19.424392]
[1748540790384,4.198,2659.0,2658.4,17.628292]
[1748540790710,5.25550232,2659.0,2658.0,8.97369]
[1748540790909,1.3874,2659.1,2658.4,1.89340478]
[1748540791093,4.254,2659.0,2658.5,18.896303]
[1748540791297,4.254,2659.0,2658.5,17.755332]
[1748540791496,4.254,2659.0,2658.5,12.753693]
[1748540791830,4.251,2658.9,2658.5,12.537034]
[1748540792037,1.3895,2659.5,2658.7,0.55]
[1748540792196,1.3895,2659.5,2658.9,15.178886]
[1748540792197,4.249,2659.4,2658.9,15.178886]
[1748540792591,4.25,2659.4,2658.9,14.088972]
[1748540792891,4.25,2659.4,2658.9,11.719753]
[1748540793157,1.3895,2659.5,2658.9,11.719753]
[1748540793307,5.14962474,2659.5,2658.9,11.719753]
[1748540793536,8.01427529,2659.4,2658.9,11.719753]
[1748540793847,8.01427529,2659.4,2658.8,12.647153]
[1748540793848,4.254,2659.4,2658.8,12.647153]
[1748540793989,4.251,2659.3,2658.8,5.362253]
[1748540794192,4.251,2659.3,2658.6,15.733927]
[1748540794193,3.76060348,2659.2,2658.6,15.733927]
[1748540794543,3.7595649,2659.9,2658.6,15.733927]
[1748540794544,0.19567476,2661.3,2658.7,0.55]
[1748540794845,1.65909091,2662.5,2659.3,1.3833]
[1748540795039,3.0024513,2664.2,2663.0,0.19469348]
[1748540795198,5.29710038,2665.9,2663.0,0.19469348]
[1748540795199,0.34293931,2665.4,2664.3,2.8550115]
[1748540795538,5.12377613,2667.1,2666.9,6.613617]
[1748540795539,2.1525974,2667.1,2666.9,6.613617]
[1748540795840,1.286,2667.0,2665.3,0.4093]
[1748540795991,8.125,2667.7,2665.9,10.55]
[1748540796341,8.125,2667.7,2666.2,3.063947]
[1748540796545,7.575,2667.7,2667.1,0.55]
[1748540796743,1.12648485,2667.7,2666.4,1.87387251]
[1748540796909,1.435,2667.8,2666.6,3.75009375]
[1748540797236,1.435,2667.8,2667.6,3.74859427]
[1748540797439,1.435,2667.8,2667.7,3.74854743]
[1748540797945,2.25484848,2667.9,2667.7,3.74854743]
[1748540798192,2.25484848,2667.9,2667.8,3.74840692]
[1748540798307,2.25484848,2667.9,2666.8,3.7498125]
[1748540798308,2.25484848,2667.9,2667.0,3.74942212]
[1748540798514,2.25484848,2667.9,2667.5,13.627692]
[1748540798714,2.25484848,2667.9,2667.8,1.8721716]
[1748540798715,1.70484848,2667.9,2667.8,1.8721716]
[1748540798928,1.70484848,2667.9,2666.7,4.646]
[1748540798929,1.70484848,2667.9,2666.4,1.8721716]
[1748540799112,1.70484848,2667.9,2667.1,3.7493809]
[1748540799314,1.70484848,2667.9,2666.9,24.5941846]
[1748540799647,1.70484848,2667.9,2667.8,29.55018992]
[1748540799802,1.70484848,2667.9,2666.8,3.74975982]
[1748540800000,1.70484848,2667.9,2667.8,54.29840692]
[1748540800223,1.70484848,2667.9,2667.8,45.08284292]
[1748540800764,1.70484848,2667.9,2667.8,41.60421192]
[1748540801051,1.70484848,2667.9,2667.8,0.201314]
[1748540802165,1.70484848,2667.9,2667.8,0.53828475]
[1748540802303,1.70484848,2667.9,2667.8,7.00916341]
[1748540802639,1.70484848,2667.9,2667.8,11.0587994]
[1748540802856,1.70484848,2667.9,2667.8,10.72210218]
[1748540802857,1.46132037,2667.9,2667.8,10.72210218]
[1748540803149,1.09604745,2667.9,2667.8,10.72210218]
[1748540803359,0.68502966,2667.9,2667.8,18.74948298]
[1748540803522,2.31709957,2668.7,2668.6,11.85773821]
[1748540803720,2.31709957,2668.7,2668.6,8.61238921]
[1748540803938,2.31709957,2668.7,2668.6,0.25781371]
[1748540804114,2.55080953,2668.7,2668.6,0.25781371]
[1748540804633,2.55080953,2668.7,2667.8,0.201314]
[1748540804819,2.31709957,2668.7,2667.9,12.065943]
[1748540805017,2.31709957,2668.7,2667.9,3.74821175]
[1748540805215,2.31709957,2668.7,2667.9,3.730566]
[1748540805418,2.31709957,2668.7,2667.8,0.201314]
[1748540805419,2.31709957,2668.7,2668.1,13.439483]
[1748540805614,5.64270996,2668.6,2668.3,2.546833]
[1748540805813,5.64270996,2668.6,2668.4,0.31284013]
[1748540806921,5.398,2668.5,2668.4,0.31284013]
[1748540808382,6.06427361,2668.7,2668.4,2.63868813]
[1748540808383,2.31709957,2668.7,2668.4,2.63868813]
[1748540808682,7.70109957,2668.7,2668.4,0.31284013]
[1748540808982,3.74742364,2668.5,2668.4,0.31284013]
[1748540809356,0.23170996,2668.6,2668.4,0.31284013]
[1748540809784,7.70109957,2668.7,2668.4,0.31284013]
[1748540809785,2.31709957,2668.7,2668.4,0.31284013]
[1748540809988,0.02,2668.9,2668.8,3.74700239]
[1748540810198,0.02,2668.9,2668.8,2.43]
[1748540810489,5.401,2668.9,2668.8,0.31279324]
[1748540811190,3.74781867,2668.3,2667.8,0.201314]
[1748540811494,5.12816642,2667.9,2667.8,0.201314]
[1748540811645,1.3799,2667.9,2667.8,0.201314]
[1748540811843,6.7609,2667.9,2667.8,0.201314]
[1748540812156,5.381,2667.9,2667.8,2.415673]
[1748540812356,4.1259641,2667.9,2667.8,0.201314]
[1748540812758,8.66163989,2667.9,2667.8,0.201314]
[1748540812958,8.66163989,2667.9,2666.8,10.0]
[1748540812959,1.4448,2667.8,2666.3,10.0]
[1748540813162,1.4448,2667.8,2666.0,3.7508331]
[1748540813163,0.55,2667.7,2666.4,0.31307478]
[1748540813473,0.55,2667.5,2666.5,3.553086]
[1748540813643,3.74868795,2667.6,2666.5,3.553086]
[1748540813644,3.74939572,2667.1,2666.6,0.3130513]
[1748540813841,5.74093957,2667.0,2666.6,0.3130513]
[1748540814044,1.9948,2667.8,2666.7,4.697528]
[1748540814045,1.4448,2667.8,2666.7,4.697528]
[1748540814244,3.74908863,2667.4,2666.8,0.31302782]
[1748540814445,3.74915621,2667.3,2666.9,13.338359]
[1748540814676,3.74902651,2667.4,2667.0,0.31300435]
[1748540814887,3.74856982,2667.7,2667.1,3.4211]
[1748540815073,3.74910958,2667.3,2667.2,0.31298088]
[1748540815611,0.51933698,2667.6,2667.2,0.31298088]
[1748540815894,3.7488726,2667.5,2667.2,0.31298088]
[1748540816075,6.7928,2667.8,2667.2,0.31298088]
[1748540816244,3.74910958,2667.3,2667.2,0.31298088]
[1748540816447,4.49891748,2667.3,2667.2,0.31298088]
[1748540816698,9.84591748,2667.3,2667.2,0.31298088]
[1748540817702,9.83291748,2667.3,2667.2,0.31298088]
[1748540819376,9.82291748,2667.3,2667.2,0.31298088]
[1748540820748,3.74991241,2666.8,2665.9,10.0]
[1748540820950,3.74991241,2666.8,2666.1,10.0]
[1748540820951,0.37499124,2666.8,2666.1,10.0]
[1748540821150,0.37499124,2666.8,2665.7,1.2039]
[1748540821151,3.75051889,2666.3,2665.8,6.976704]
[1748540821355,3.75045279,2666.4,2666.0,10.0]
[1748540821581,3.75022055,2666.6,2666.1,10.0]
[1748540821781,5.15307319,2666.9,2665.8,3.75115477]
[1748540821984,3.75007135,2666.7,2666.0,10.0]
[1748540822149,3.75023438,2666.5,2666.1,0.33665486]
[1748540822351,0.90490714,2666.6,2665.2,3.7520413]
[1748540822352,3.7504284,2666.4,2665.4,5.551581]
[1748540822659,3.75135681,2665.8,2665.6,2.483492]
[1748540822859,3.75135681,2665.8,2665.4,0.11172174]
[1748540822860,3.75135986,2665.7,2665.4,2.1551]
[1748540823156,3.75153963,2665.6,2665.5,3.915998]
[1748540823372,3.75178209,2665.4,2665.3,0.11172174]
[1748540823558,9.04022638,2665.8,2665.4,15.285445]
[1748540823885,3.7515006,2665.6,2665.5,0.12001234]